[Event "Titled Tuesday Blitz August 15 Early 2023"]
[White "Salinas Herrera, Pablo"]
[Black "Herman, Daniel"]
[WhiteFideId "3407128"]
[BlackFideId "30935008"]
[WhiteElo "2825"]
[BlackElo "2443"]
[Result "1-0"]
[Round "3"]
[TimeControl "180+1"]
[Date "2023.08.15"]
[WhiteClock "0:00:17"]
[BlackClock "0:00:00"]
[Board "42"]

1. d4 {[%clk 0:02:58]}  Nf6 {[%clk 0:02:58]} 2. Nf3 {[%clk 0:02:58]}  g6 {[%clk 0:02:58]} 3. Nbd2 {[%clk 0:02:58]}  d5 {[%clk 0:02:55]} 4. e3 {[%clk 0:02:59]}  Bg7 {[%clk 0:02:55]} 5. b4 {[%clk 0:02:59]}  a5 {[%clk 0:02:38]} 6. b5 {[%clk 0:02:59]}  a4 {[%clk 0:02:35]} 7. c4 {[%clk 0:02:59]}  O-O {[%clk 0:02:19]} 8. Ba3 {[%clk 0:02:59]}  Bg4 {[%clk 0:01:58]} 9. Rc1 {[%clk 0:02:56]}  c6 {[%clk 0:01:55]} 10. bxc6 {[%clk 0:02:54]}  bxc6 {[%clk 0:01:55]} 11. h3 {[%clk 0:02:53]}  Bxf3 {[%clk 0:01:53]} 12. Qxf3 {[%clk 0:02:54]}  Re8 {[%clk 0:01:45]} 13. cxd5 {[%clk 0:02:51]}  cxd5 {[%clk 0:01:43]} 14. Bb5 {[%clk 0:02:51]}  Nbd7 {[%clk 0:01:40]} 15. O-O {[%clk 0:02:52]}  Qa5 {[%clk 0:01:37]} 16. Qe2 {[%clk 0:02:52]}  Rab8 {[%clk 0:01:34]} 17. Rb1 {[%clk 0:02:52]}  e6 {[%clk 0:01:27]} 18. Bd6 {[%clk 0:02:51]}  Rbc8 {[%clk 0:01:18]} 19. Bb4 {[%clk 0:02:48]}  Qa8 {[%clk 0:01:08]} 20. Qd1 {[%clk 0:02:40]}  Bf8 {[%clk 0:00:57]} 21. Bxf8 {[%clk 0:02:36]}  Rxf8 {[%clk 0:00:58]} 22. Qxa4 {[%clk 0:02:35]}  Nb6 {[%clk 0:00:45]} 23. Qb3 {[%clk 0:02:31]}  Qa5 {[%clk 0:00:41]} 24. Qb2 {[%clk 0:01:33]}  Rb8 {[%clk 0:00:28]} 25. Rfc1 {[%clk 0:01:26]}  Kg7 {[%clk 0:00:20]} 26. a3 {[%clk 0:01:12]}  Rfc8 {[%clk 0:00:19]} 27. Rxc8 {[%clk 0:01:12]}  Nxc8 {[%clk 0:00:20]} 28. a4 {[%clk 0:01:08]}  Nd6 {[%clk 0:00:20]} 29. Nb3 {[%clk 0:01:05]}  Qb4 {[%clk 0:00:19]} 30. Nc5 {[%clk 0:01:03]}  Qxb2 {[%clk 0:00:18]} 31. Rxb2 {[%clk 0:01:04]}  Nfe4 {[%clk 0:00:12]} 32. Nxe4 {[%clk 0:00:48]}  dxe4 {[%clk 0:00:13]} 33. Kf1 {[%clk 0:00:46]}  Kf8 {[%clk 0:00:13]} 34. Ke2 {[%clk 0:00:46]}  Nxb5 {[%clk 0:00:09]} 35. axb5 {[%clk 0:00:46]}  Ke7 {[%clk 0:00:10]} 36. Kd2 {[%clk 0:00:44]}  Kd6 {[%clk 0:00:09]} 37. Kc3 {[%clk 0:00:44]}  Kc7 {[%clk 0:00:09]} 38. Kb4 {[%clk 0:00:43]}  Kb7 {[%clk 0:00:07]} 39. Rc2 {[%clk 0:00:37]}  Ra8 {[%clk 0:00:07]} 40. f3 {[%clk 0:00:15]}  exf3 {[%clk 0:00:07]} 41. gxf3 {[%clk 0:00:16]}  Ra1 {[%clk 0:00:07]} 42. Kc5 {[%clk 0:00:16]}  Rh1 {[%clk 0:00:06]} 43. b6 {[%clk 0:00:13]}  Rxh3 {[%clk 0:00:05]} 44. Ra2 {[%clk 0:00:13]}  Rh1 {[%clk 0:00:05]} 45. Ra7+ {[%clk 0:00:14]}  Kb8 {[%clk 0:00:05]} 46. Rxf7 {[%clk 0:00:15]}  h5 {[%clk 0:00:04]} 47. Kc6 {[%clk 0:00:13]}  Rc1+ {[%clk 0:00:04]} 48. Kd6 {[%clk 0:00:14]}  h4 {[%clk 0:00:03]} 49. Rh7 {[%clk 0:00:14]}  g5 {[%clk 0:00:03]} 50. Rh5 {[%clk 0:00:13]}  Rg1 {[%clk 0:00:03]} 51. e4 {[%clk 0:00:13]}  Kb7 {[%clk 0:00:02]} 52. Kxe6 {[%clk 0:00:13]}  Kxb6 {[%clk 0:00:02]} 53. d5 {[%clk 0:00:14]}  Kc7 {[%clk 0:00:03]} 54. e5 {[%clk 0:00:14]}  Rg3 {[%clk 0:00:01]} 55. d6+ {[%clk 0:00:15]}  Kc6 {[%clk 0:00:01]} 56. Rh8 {[%clk 0:00:14]}  Rxf3 {[%clk 0:00:01]} 57. Rc8+ {[%clk 0:00:14]}  Kb7 {[%clk 0:00:01]} 58. d7 {[%clk 0:00:15]}  Rd3 {[%clk 0:00:01]} 59. d8=Q {[%clk 0:00:16]}  Rxd8 {[%clk 0:00:01]} 60. Rxd8 {[%clk 0:00:17]}  g4 {[%clk 0:00:02]} 61. Rg8 {[%clk 0:00:17]}  h3 {[%clk 0:00:00]} 62. Rxg4 {[%clk 0:00:17]} 1-0


[Site "https://www.chess.com"]

[Event "Titled Tuesday Blitz August 15 Early 2023"]
[White "Maksimovic, Bojan"]
[Black "Bueno, Alfeu Junior Varela"]
[WhiteFideId "14408120"]
[BlackFideId "2108879"]
[WhiteElo "2823"]
[BlackElo "2437"]
[Result "1-0"]
[Round "3"]
[TimeControl "180+1"]
[Date "2023.08.15"]
[WhiteClock "0:00:14"]
[BlackClock "0:00:00"]
[Board "43"]

1. e4 {[%clk 0:02:59]}  e6 {[%clk 0:03:00]} 2. Qe2 {[%clk 0:02:58]}  e5 {[%clk 0:02:58]} 3. Nf3 {[%clk 0:02:58]}  Nc6 {[%clk 0:02:58]} 4. c3 {[%clk 0:02:57]}  Bc5 {[%clk 0:02:55]} 5. b4 {[%clk 0:02:49]}  Bd6 {[%clk 0:02:36]} 6. b5 {[%clk 0:02:42]}  Nce7 {[%clk 0:02:35]} 7. d4 {[%clk 0:02:27]}  Ng6 {[%clk 0:02:35]} 8. dxe5 {[%clk 0:02:21]}  Nxe5 {[%clk 0:02:34]} 9. Nxe5 {[%clk 0:02:21]}  Bxe5 {[%clk 0:02:35]} 10. f4 {[%clk 0:02:21]}  Bd6 {[%clk 0:02:31]} 11. e5 {[%clk 0:02:21]}  Bc5 {[%clk 0:02:31]} 12. Nd2 {[%clk 0:02:22]}  Ne7 {[%clk 0:02:19]} 13. Ne4 {[%clk 0:02:22]}  Bb6 {[%clk 0:02:19]} 14. a4 {[%clk 0:02:18]}  a6 {[%clk 0:02:15]} 15. a5 {[%clk 0:02:17]}  axb5 {[%clk 0:02:11]} 16. axb6 {[%clk 0:01:47]}  Rxa1 {[%clk 0:02:10]} 17. Qb2 {[%clk 0:01:48]}  Ra4 {[%clk 0:01:46]} 18. Bd3 {[%clk 0:01:27]}  O-O {[%clk 0:01:42]} 19. O-O {[%clk 0:01:27]}  d5 {[%clk 0:01:25]} 20. bxc7 {[%clk 0:01:20]}  Qxc7 {[%clk 0:01:19]} 21. Nd6 {[%clk 0:01:20]}  Bd7 {[%clk 0:01:05]} 22. Be3 {[%clk 0:00:45]}  Rfa8 {[%clk 0:00:41]} 23. Bd4 {[%clk 0:00:45]}  Ra2 {[%clk 0:00:38]} 24. Qc1 {[%clk 0:00:43]}  Nc8 {[%clk 0:00:32]} 25. Nxc8 {[%clk 0:00:20]}  Qxc8 {[%clk 0:00:29]} 26. f5 {[%clk 0:00:20]}  Qd8 {[%clk 0:00:20]} 27. e6 {[%clk 0:00:17]}  Be8 {[%clk 0:00:15]} 28. f6 {[%clk 0:00:16]}  fxe6 {[%clk 0:00:07]} 29. Qg5 {[%clk 0:00:15]}  Qd7 {[%clk 0:00:00]} 30. f7+ {[%clk 0:00:14]} 1-0


[Site "https://www.chess.com"]

[Event "Titled Tuesday Blitz August 15 Early 2023"]
[White "Mekhitarian, Krikor Sevag"]
[Black "Frayna, Janelle Mae"]
[WhiteFideId "2107660"]
[BlackFideId "5212499"]
[WhiteElo "2802"]
[BlackElo "2415"]
[Result "1-0"]
[Round "3"]
[TimeControl "180+1"]
[Date "2023.08.15"]
[WhiteClock "0:00:07"]
[BlackClock "0:00:31"]
[Board "45"]

1. Nf3 {[%clk 0:03:00]}  Nf6 {[%clk 0:02:54]} 2. c4 {[%clk 0:02:58]}  e6 {[%clk 0:02:52]} 3. d4 {[%clk 0:02:55]}  d5 {[%clk 0:02:51]} 4. cxd5 {[%clk 0:02:53]}  exd5 {[%clk 0:02:51]} 5. Nc3 {[%clk 0:02:53]}  c6 {[%clk 0:02:48]} 6. Bf4 {[%clk 0:02:53]}  Bd6 {[%clk 0:02:46]} 7. Bxd6 {[%clk 0:02:53]}  Qxd6 {[%clk 0:02:47]} 8. e3 {[%clk 0:02:54]}  O-O {[%clk 0:02:46]} 9. Qb3 {[%clk 0:02:49]}  Re8 {[%clk 0:02:43]} 10. Bd3 {[%clk 0:02:48]}  a5 {[%clk 0:02:41]} 11. a3 {[%clk 0:02:46]}  b5 {[%clk 0:02:34]} 12. O-O {[%clk 0:02:45]}  Bg4 {[%clk 0:02:33]} 13. Ne5 {[%clk 0:02:45]}  Nbd7 {[%clk 0:02:30]} 14. f4 {[%clk 0:02:40]}  Nb6 {[%clk 0:02:17]} 15. Qc2 {[%clk 0:02:34]}  Bd7 {[%clk 0:02:13]} 16. Rae1 {[%clk 0:02:26]}  Nc4 {[%clk 0:02:13]} 17. h3 {[%clk 0:02:24]}  Rab8 {[%clk 0:02:04]} 18. g4 {[%clk 0:02:04]}  c5 {[%clk 0:01:57]} 19. g5 {[%clk 0:02:01]}  Ne4 {[%clk 0:01:34]} 20. Bxe4 {[%clk 0:01:53]}  dxe4 {[%clk 0:01:34]} 21. Nxe4 {[%clk 0:01:53]}  Qc7 {[%clk 0:01:31]} 22. Nxc5 {[%clk 0:01:50]}  Bxh3 {[%clk 0:01:28]} 23. Rf2 {[%clk 0:01:48]}  Nd6 {[%clk 0:01:08]} 24. Na6 {[%clk 0:01:36]}  Qxc2 {[%clk 0:01:06]} 25. Rxc2 {[%clk 0:01:37]}  Rbc8 {[%clk 0:01:03]} 26. Rxc8 {[%clk 0:01:33]}  Rxc8 {[%clk 0:01:04]} 27. Nc5 {[%clk 0:01:33]}  f6 {[%clk 0:01:00]} 28. gxf6 {[%clk 0:01:21]}  gxf6 {[%clk 0:01:01]} 29. Ned3 {[%clk 0:01:21]}  Kf7 {[%clk 0:00:59]} 30. Kf2 {[%clk 0:01:21]}  Bf5 {[%clk 0:00:56]} 31. e4 {[%clk 0:01:18]}  Be6 {[%clk 0:00:55]} 32. Nxe6 {[%clk 0:01:00]}  Kxe6 {[%clk 0:00:54]} 33. Nc5+ {[%clk 0:01:00]}  Kf7 {[%clk 0:00:53]} 34. Rh1 {[%clk 0:01:00]}  Rh8 {[%clk 0:00:49]} 35. Kf3 {[%clk 0:00:58]}  h5 {[%clk 0:00:48]} 36. e5 {[%clk 0:00:57]}  Nc4 {[%clk 0:00:47]} 37. b3 {[%clk 0:00:48]}  Nxa3 {[%clk 0:00:46]} 38. Ne4 {[%clk 0:00:49]}  Nc2 {[%clk 0:00:43]} 39. Nxf6 {[%clk 0:00:40]}  Nxd4+ {[%clk 0:00:43]} 40. Ke4 {[%clk 0:00:41]}  Nxb3 {[%clk 0:00:43]} 41. Nd5 {[%clk 0:00:39]}  Nc5+ {[%clk 0:00:40]} 42. Kd4 {[%clk 0:00:32]}  Ne6+ {[%clk 0:00:40]} 43. Ke3 {[%clk 0:00:33]}  h4 {[%clk 0:00:38]} 44. f5 {[%clk 0:00:33]}  Nc5 {[%clk 0:00:34]} 45. Rc1 {[%clk 0:00:15]}  h3 {[%clk 0:00:34]} 46. Rxc5 {[%clk 0:00:15]}  h2 {[%clk 0:00:33]} 47. e6+ {[%clk 0:00:15]}  Kg8 {[%clk 0:00:32]} 48. Rc8+ {[%clk 0:00:13]}  Kg7 {[%clk 0:00:33]} 49. f6+ {[%clk 0:00:14]}  Kh7 {[%clk 0:00:33]} 50. Rxh8+ {[%clk 0:00:07]}  Kxh8 {[%clk 0:00:34]} 51. e7 {[%clk 0:00:07]}  h1=Q {[%clk 0:00:32]} 52. e8=Q+ {[%clk 0:00:08]}  Kh7 {[%clk 0:00:33]} 53. Qf7+ {[%clk 0:00:07]}  Kh6 {[%clk 0:00:32]} 54. Qg7+ {[%clk 0:00:08]}  Kh5 {[%clk 0:00:32]} 55. Qh7+ {[%clk 0:00:06]}  Kg4 {[%clk 0:00:33]} 56. Qxh1 {[%clk 0:00:06]}  Kf5 {[%clk 0:00:34]} 57. Qe4+ {[%clk 0:00:06]}  Kg5 {[%clk 0:00:34]} 58. f7 {[%clk 0:00:06]}  Kh6 {[%clk 0:00:31]} 59. f8=Q+ {[%clk 0:00:07]} 1-0


[Site "https://www.chess.com"]

[Event "Titled Tuesday Blitz August 15 Early 2023"]
[White "Lach, Aleksandra"]
[Black "Wagner, Dennis"]
[WhiteFideId "1134299"]
[BlackFideId "24650684"]
[WhiteElo "2386"]
[BlackElo "2775"]
[Result "0-1"]
[Round "3"]
[TimeControl "180+1"]
[Date "2023.08.15"]
[WhiteClock "0:00:00"]
[BlackClock "0:00:30"]
[Board "47"]

1. Nf3 {[%clk 0:02:56]}  g6 {[%clk 0:02:57]} 2. g3 {[%clk 0:02:50]}  Bg7 {[%clk 0:02:56]} 3. Bg2 {[%clk 0:02:51]}  c5 {[%clk 0:02:55]} 4. e4 {[%clk 0:02:48]}  Nc6 {[%clk 0:02:55]} 5. O-O {[%clk 0:02:47]}  d6 {[%clk 0:02:55]} 6. c3 {[%clk 0:02:47]}  e5 {[%clk 0:02:52]} 7. b3 {[%clk 0:02:40]}  Nge7 {[%clk 0:02:51]} 8. Bb2 {[%clk 0:02:41]}  O-O {[%clk 0:02:48]} 9. a4 {[%clk 0:02:41]}  h6 {[%clk 0:02:42]} 10. Na3 {[%clk 0:02:40]}  Be6 {[%clk 0:02:41]} 11. Rb1 {[%clk 0:02:20]}  d5 {[%clk 0:02:29]} 12. exd5 {[%clk 0:02:18]}  Nxd5 {[%clk 0:02:29]} 13. Nc4 {[%clk 0:02:15]}  Bf5 {[%clk 0:02:21]} 14. Rc1 {[%clk 0:02:11]}  Bd3 {[%clk 0:02:21]} 15. Re1 {[%clk 0:02:09]}  e4 {[%clk 0:02:21]} 16. Nh4 {[%clk 0:02:00]}  Re8 {[%clk 0:02:17]} 17. Ba3 {[%clk 0:01:43]}  Qd7 {[%clk 0:01:59]} 18. Bxc5 {[%clk 0:01:14]}  g5 {[%clk 0:01:57]} 19. Nd6 {[%clk 0:01:15]}  gxh4 {[%clk 0:01:48]} 20. Nxe8 {[%clk 0:01:14]}  Rxe8 {[%clk 0:01:45]} 21. Qh5 {[%clk 0:01:13]}  hxg3 {[%clk 0:01:31]} 22. hxg3 {[%clk 0:01:11]}  Ne5 {[%clk 0:01:25]} 23. Bd4 {[%clk 0:01:07]}  f5 {[%clk 0:01:20]} 24. Bxe5 {[%clk 0:01:03]}  Rxe5 {[%clk 0:01:19]} 25. Bh3 {[%clk 0:00:48]}  Qe6 {[%clk 0:01:02]} 26. c4 {[%clk 0:00:42]}  Nb4 {[%clk 0:00:58]} 27. Qd1 {[%clk 0:00:18]}  Qg6 {[%clk 0:00:54]} 28. Kh2 {[%clk 0:00:18]}  Kh7 {[%clk 0:00:47]} 29. Rg1 {[%clk 0:00:18]}  Bf8 {[%clk 0:00:47]} 30. g4 {[%clk 0:00:18]}  f4 {[%clk 0:00:46]} 31. f3 {[%clk 0:00:16]}  Bd6 {[%clk 0:00:42]} 32. Kh1 {[%clk 0:00:15]}  Qg5 {[%clk 0:00:41]} 33. Rg2 {[%clk 0:00:12]}  exf3 {[%clk 0:00:39]} 34. Rf2 {[%clk 0:00:11]}  Qh4 {[%clk 0:00:38]} 35. Qg1 {[%clk 0:00:10]}  Qxh3+ {[%clk 0:00:37]} 36. Rh2 {[%clk 0:00:10]}  Qg3 {[%clk 0:00:37]} 37. Qd4 {[%clk 0:00:09]}  Be4 {[%clk 0:00:31]} 38. Rf2 {[%clk 0:00:04]}  Nd3 {[%clk 0:00:31]} 39. Rg1 {[%clk 0:00:00]}  Nxf2+ {[%clk 0:00:30]} 0-1


[Site "https://www.chess.com"]

[Event "Titled Tuesday Blitz August 15 Early 2023"]
[White "Petkov, Momchil"]
[Black "Osinovsky, Stepan"]
[WhiteFideId "2921642"]
[BlackFideId "4157354"]
[WhiteElo "2773"]
[BlackElo "2351"]
[Result "1-0"]
[Round "3"]
[TimeControl "180+1"]
[Date "2023.08.15"]
[WhiteClock "0:00:20"]
[BlackClock "0:00:00"]
[Board "48"]

1. d4 {[%clk 0:03:00]}  Nf6 {[%clk 0:02:58]} 2. Nf3 {[%clk 0:03:01]}  g6 {[%clk 0:02:58]} 3. Bf4 {[%clk 0:02:58]}  Bg7 {[%clk 0:02:58]} 4. e3 {[%clk 0:02:58]}  O-O {[%clk 0:02:58]} 5. h3 {[%clk 0:02:57]}  d6 {[%clk 0:02:59]} 6. c3 {[%clk 0:02:57]}  Nbd7 {[%clk 0:02:58]} 7. Bh2 {[%clk 0:02:57]}  b6 {[%clk 0:02:56]} 8. a4 {[%clk 0:02:56]}  Bb7 {[%clk 0:02:57]} 9. a5 {[%clk 0:02:56]}  Re8 {[%clk 0:02:51]} 10. a6 {[%clk 0:02:55]}  Bc6 {[%clk 0:02:51]} 11. Bc4 {[%clk 0:02:50]}  e6 {[%clk 0:02:44]} 12. Nbd2 {[%clk 0:02:48]}  b5 {[%clk 0:02:41]} 13. Be2 {[%clk 0:02:45]}  Rb8 {[%clk 0:02:41]} 14. O-O {[%clk 0:02:42]}  Ne4 {[%clk 0:02:28]} 15. Nxe4 {[%clk 0:02:38]}  Bxe4 {[%clk 0:02:27]} 16. Nd2 {[%clk 0:02:38]}  Ba8 {[%clk 0:02:25]} 17. Bf3 {[%clk 0:02:36]}  Bxf3 {[%clk 0:02:19]} 18. Qxf3 {[%clk 0:02:37]}  Qc8 {[%clk 0:02:18]} 19. Ra5 {[%clk 0:02:26]}  Rb6 {[%clk 0:02:06]} 20. Rfa1 {[%clk 0:02:26]}  Nb8 {[%clk 0:01:55]} 21. Ne4 {[%clk 0:02:23]}  f5 {[%clk 0:01:37]} 22. Nd2 {[%clk 0:02:23]}  Rxa6 {[%clk 0:01:37]} 23. Rxa6 {[%clk 0:02:23]}  Nxa6 {[%clk 0:01:37]} 24. Qc6 {[%clk 0:02:23]}  Nb8 {[%clk 0:01:20]} 25. Qxb5 {[%clk 0:02:24]}  a6 {[%clk 0:01:19]} 26. Qc4 {[%clk 0:02:22]}  Qb7 {[%clk 0:01:18]} 27. b4 {[%clk 0:02:19]}  Kf7 {[%clk 0:01:16]} 28. Nf3 {[%clk 0:02:18]}  h6 {[%clk 0:01:13]} 29. Ra5 {[%clk 0:02:18]}  Bf8 {[%clk 0:01:07]} 30. Nd2 {[%clk 0:02:13]}  Rc8 {[%clk 0:01:06]} 31. e4 {[%clk 0:02:02]}  fxe4 {[%clk 0:01:03]} 32. d5 {[%clk 0:02:02]}  c5 {[%clk 0:00:41]} 33. dxe6+ {[%clk 0:01:51]}  Ke7 {[%clk 0:00:40]} 34. Nxe4 {[%clk 0:01:45]}  d5 {[%clk 0:00:34]} 35. Bd6+ {[%clk 0:01:35]}  Kxe6 {[%clk 0:00:32]} 36. Nxc5+ {[%clk 0:01:35]}  Rxc5 {[%clk 0:00:31]} 37. Qg4+ {[%clk 0:01:32]}  Kxd6 {[%clk 0:00:19]} 38. bxc5+ {[%clk 0:01:32]}  Kc7 {[%clk 0:00:14]} 39. Qxg6 {[%clk 0:01:31]}  Nc6 {[%clk 0:00:13]} 40. Qf7+ {[%clk 0:01:21]}  Be7 {[%clk 0:00:13]} 41. Ra1 {[%clk 0:01:22]}  Qb2 {[%clk 0:00:13]} 42. Re1 {[%clk 0:01:21]}  Qxc3 {[%clk 0:00:05]} 43. Rxe7+ {[%clk 0:01:13]}  Nxe7 {[%clk 0:00:05]} 44. Qxe7+ {[%clk 0:01:13]}  Kc6 {[%clk 0:00:06]} 45. Qd6+ {[%clk 0:01:13]}  Kb5 {[%clk 0:00:06]} 46. Qb6+ {[%clk 0:01:11]}  Kc4 {[%clk 0:00:06]} 47. c6 {[%clk 0:00:50]}  d4 {[%clk 0:00:02]} 48. Qxa6+ {[%clk 0:00:43]}  Kd5 {[%clk 0:00:01]} 49. Qb5+ {[%clk 0:00:41]}  Kd6 {[%clk 0:00:01]} 50. Qb8+ {[%clk 0:00:36]}  Kxc6 {[%clk 0:00:00]} 51. Kf1 {[%clk 0:00:20]} 1-0


[Site "https://www.chess.com"]

[Event "Titled Tuesday Blitz August 15 Early 2023"]
[White "Srihari L R"]
[Black "Akylbek2021"]
[WhiteFideId "46617116"]
[WhiteElo "2768"]
[BlackElo "2341"]
[Result "1-0"]
[Round "3"]
[TimeControl "180+1"]
[Date "2023.08.15"]
[WhiteClock "0:00:45"]
[BlackClock "0:00:13"]
[Board "49"]

1. Nf3 {[%clk 0:03:00]}  Nf6 {[%clk 0:03:00]} 2. g3 {[%clk 0:02:57]}  g6 {[%clk 0:03:00]} 3. Bg2 {[%clk 0:02:58]}  Bg7 {[%clk 0:03:00]} 4. O-O {[%clk 0:02:58]}  O-O {[%clk 0:03:01]} 5. d3 {[%clk 0:02:59]}  d5 {[%clk 0:03:01]} 6. Nbd2 {[%clk 0:02:56]}  c5 {[%clk 0:03:01]} 7. e4 {[%clk 0:02:56]}  Nc6 {[%clk 0:03:01]} 8. Re1 {[%clk 0:02:57]}  e5 {[%clk 0:03:00]} 9. exd5 {[%clk 0:02:53]}  Nxd5 {[%clk 0:03:01]} 10. Nc4 {[%clk 0:02:54]}  Re8 {[%clk 0:03:01]} 11. a4 {[%clk 0:02:53]}  h6 {[%clk 0:03:00]} 12. c3 {[%clk 0:02:52]}  b6 {[%clk 0:03:00]} 13. Qc2 {[%clk 0:02:52]}  f6 {[%clk 0:02:50]} 14. Bd2 {[%clk 0:02:51]}  Be6 {[%clk 0:02:51]} 15. Rad1 {[%clk 0:02:51]}  Bf7 {[%clk 0:02:50]} 16. Bc1 {[%clk 0:02:51]}  f5 {[%clk 0:02:50]} 17. Ne3 {[%clk 0:02:43]}  Rc8 {[%clk 0:02:47]} 18. Nd2 {[%clk 0:02:38]}  Nxe3 {[%clk 0:02:42]} 19. Rxe3 {[%clk 0:02:37]}  Nd4 {[%clk 0:02:41]} 20. Qb1 {[%clk 0:02:36]}  Nb3 {[%clk 0:02:39]} 21. Nxb3 {[%clk 0:02:11]}  Bxb3 {[%clk 0:02:40]} 22. Rde1 {[%clk 0:02:10]}  a5 {[%clk 0:02:34]} 23. f4 {[%clk 0:02:06]}  Qd7 {[%clk 0:02:27]} 24. fxe5 {[%clk 0:02:06]}  Qxa4 {[%clk 0:02:27]} 25. R3e2 {[%clk 0:01:51]}  Rcd8 {[%clk 0:02:20]} 26. h4 {[%clk 0:01:49]}  Kh8 {[%clk 0:02:02]} 27. Bf4 {[%clk 0:01:49]}  Ba2 {[%clk 0:01:55]} 28. Qc1 {[%clk 0:01:44]}  Rxd3 {[%clk 0:01:51]} 29. Bf1 {[%clk 0:01:29]}  Bd5 {[%clk 0:01:36]} 30. Rf2 {[%clk 0:01:22]}  Rf3 {[%clk 0:01:30]} 31. Rxf3 {[%clk 0:01:21]}  Bxf3 {[%clk 0:01:31]} 32. Bxh6 {[%clk 0:01:16]}  Bxe5 {[%clk 0:01:09]} 33. Qg5 {[%clk 0:01:15]}  Bd4+ {[%clk 0:00:37]} 34. cxd4 {[%clk 0:01:14]}  Qxd4+ {[%clk 0:00:38]} 35. Re3 {[%clk 0:01:14]}  Kh7 {[%clk 0:00:30]} 36. Qf4 {[%clk 0:01:00]}  Be4 {[%clk 0:00:27]} 37. b3 {[%clk 0:00:55]}  a4 {[%clk 0:00:22]} 38. bxa4 {[%clk 0:00:53]}  c4 {[%clk 0:00:23]} 39. Bg5 {[%clk 0:00:50]}  c3 {[%clk 0:00:22]} 40. Qc7+ {[%clk 0:00:49]}  Kh8 {[%clk 0:00:19]} 41. Qxc3 {[%clk 0:00:49]}  Qxc3 {[%clk 0:00:19]} 42. Rxc3 {[%clk 0:00:49]}  Ra8 {[%clk 0:00:17]} 43. Rc7 {[%clk 0:00:48]}  Rxa4 {[%clk 0:00:14]} 44. Bf6+ {[%clk 0:00:45]}  Kg8 {[%clk 0:00:15]} 45. Bc4+ {[%clk 0:00:45]}  Kf8 {[%clk 0:00:13]} 46. Rc8# {[%clk 0:00:45]} 1-0


[Site "https://www.chess.com"]

[Event "Titled Tuesday Blitz August 15 Early 2023"]
[White "Materia, Marco"]
[Black "Goswami, Vedant"]
[WhiteFideId "45150451"]
[BlackFideId "5003725"]
[WhiteElo "2768"]
[BlackElo "2321"]
[Result "1-0"]
[Round "3"]
[TimeControl "180+1"]
[Date "2023.08.15"]
[WhiteClock "0:00:46"]
[BlackClock "0:00:00"]
[Board "50"]

1. d4 {[%clk 0:03:00]}  d6 {[%clk 0:02:56]} 2. Nf3 {[%clk 0:02:58]}  Nd7 {[%clk 0:02:56]} 3. c4 {[%clk 0:02:58]}  c6 {[%clk 0:02:56]} 4. Nc3 {[%clk 0:02:58]}  e5 {[%clk 0:02:56]} 5. e4 {[%clk 0:02:57]}  Be7 {[%clk 0:02:56]} 6. Be2 {[%clk 0:02:56]}  Ngf6 {[%clk 0:02:56]} 7. O-O {[%clk 0:02:57]}  O-O {[%clk 0:02:57]} 8. Be3 {[%clk 0:02:55]}  Ng4 {[%clk 0:02:55]} 9. Bd2 {[%clk 0:02:53]}  Qb6 {[%clk 0:02:42]} 10. Qc2 {[%clk 0:02:40]}  exd4 {[%clk 0:02:20]} 11. Na4 {[%clk 0:02:39]}  Qc7 {[%clk 0:02:18]} 12. Nxd4 {[%clk 0:02:39]}  Nc5 {[%clk 0:02:08]} 13. Nc3 {[%clk 0:02:19]}  Bf6 {[%clk 0:02:00]} 14. Nf5 {[%clk 0:02:17]}  Bxf5 {[%clk 0:01:52]} 15. exf5 {[%clk 0:02:18]}  Ne5 {[%clk 0:01:48]} 16. Rad1 {[%clk 0:02:17]}  Rfe8 {[%clk 0:01:43]} 17. b4 {[%clk 0:02:15]}  Na6 {[%clk 0:01:39]} 18. Ne4 {[%clk 0:02:15]}  Qe7 {[%clk 0:01:28]} 19. Rfe1 {[%clk 0:02:03]}  Rad8 {[%clk 0:01:27]} 20. f4 {[%clk 0:01:58]}  Nd7 {[%clk 0:01:23]} 21. Bf3 {[%clk 0:01:56]}  Qf8 {[%clk 0:01:21]} 22. a3 {[%clk 0:01:40]}  Bd4+ {[%clk 0:01:17]} 23. Kh1 {[%clk 0:01:40]}  Nf6 {[%clk 0:01:18]} 24. Nxf6+ {[%clk 0:01:31]}  Bxf6 {[%clk 0:01:17]} 25. b5 {[%clk 0:01:26]}  cxb5 {[%clk 0:01:13]} 26. cxb5 {[%clk 0:01:25]}  Nc5 {[%clk 0:01:13]} 27. Bb4 {[%clk 0:01:24]}  b6 {[%clk 0:01:03]} 28. Bd5 {[%clk 0:01:17]}  Rxe1+ {[%clk 0:00:59]} 29. Rxe1 {[%clk 0:01:17]}  Re8 {[%clk 0:01:00]} 30. Rd1 {[%clk 0:01:14]}  Re3 {[%clk 0:00:57]} 31. Qf2 {[%clk 0:01:05]}  Qe8 {[%clk 0:00:53]} 32. Bc6 {[%clk 0:01:00]}  Qe7 {[%clk 0:00:49]} 33. Qf1 {[%clk 0:00:52]}  h6 {[%clk 0:00:44]} 34. g4 {[%clk 0:00:51]}  Re2 {[%clk 0:00:24]} 35. Bf3 {[%clk 0:00:49]}  Rb2 {[%clk 0:00:21]} 36. Re1 {[%clk 0:00:49]}  Qd7 {[%clk 0:00:18]} 37. Bc6 {[%clk 0:00:49]}  Qc7 {[%clk 0:00:16]} 38. g5 {[%clk 0:00:50]}  Bd4 {[%clk 0:00:13]} 39. g6 {[%clk 0:00:46]}  fxg6 {[%clk 0:00:00]} 40. fxg6 {[%clk 0:00:46]} 1-0


[Site "https://www.chess.com"]

[Event "Titled Tuesday Blitz August 15 Early 2023"]
[White "Fedoseev, Vladimir"]
[Black "SmirnovAlexandrA"]
[WhiteFideId "24130737"]
[WhiteElo "3100"]
[BlackElo "2615"]
[Result "1-0"]
[Round "3"]
[TimeControl "180+1"]
[Date "2023.08.15"]
[WhiteClock "0:00:18"]
[BlackClock "0:00:05"]
[Board "53"]

1. Nf3 {[%clk 0:01:16]}  c5 {[%clk 0:02:47]} 2. g3 {[%clk 0:01:16]}  Nc6 {[%clk 0:02:46]} 3. Bg2 {[%clk 0:01:17]}  g6 {[%clk 0:02:46]} 4. O-O {[%clk 0:01:18]}  Bg7 {[%clk 0:02:46]} 5. c4 {[%clk 0:01:18]}  d6 {[%clk 0:02:47]} 6. Nc3 {[%clk 0:01:17]}  Nh6 {[%clk 0:02:47]} 7. d4 {[%clk 0:01:10]}  cxd4 {[%clk 0:02:45]} 8. Bxh6 {[%clk 0:01:11]}  Bxh6 {[%clk 0:02:45]} 9. Nxd4 {[%clk 0:01:12]}  Nxd4 {[%clk 0:02:38]} 10. Qxd4 {[%clk 0:01:11]}  O-O {[%clk 0:02:38]} 11. Rad1 {[%clk 0:01:07]}  a6 {[%clk 0:02:36]} 12. c5 {[%clk 0:01:06]}  Bg7 {[%clk 0:02:36]} 13. Qe3 {[%clk 0:01:03]}  Be6 {[%clk 0:02:25]} 14. Bxb7 {[%clk 0:01:00]}  Rb8 {[%clk 0:02:19]} 15. Bd5 {[%clk 0:00:59]}  Bxd5 {[%clk 0:02:05]} 16. Nxd5 {[%clk 0:00:58]}  e6 {[%clk 0:01:26]} 17. Nb6 {[%clk 0:00:50]}  d5 {[%clk 0:01:21]} 18. b4 {[%clk 0:00:49]}  Qc7 {[%clk 0:01:18]} 19. a4 {[%clk 0:00:48]}  Rfd8 {[%clk 0:01:14]} 20. a5 {[%clk 0:00:48]}  Qc6 {[%clk 0:01:11]} 21. Qd3 {[%clk 0:00:47]}  Qb7 {[%clk 0:01:05]} 22. Rc1 {[%clk 0:00:46]}  Rbc8 {[%clk 0:01:01]} 23. Nxc8 {[%clk 0:00:42]}  Rxc8 {[%clk 0:01:02]} 24. Rb1 {[%clk 0:00:39]}  e5 {[%clk 0:00:58]} 25. Rfc1 {[%clk 0:00:38]}  e4 {[%clk 0:00:56]} 26. Qc2 {[%clk 0:00:33]}  Rc6 {[%clk 0:00:52]} 27. Rd1 {[%clk 0:00:30]}  Re6 {[%clk 0:00:46]} 28. e3 {[%clk 0:00:27]}  d4 {[%clk 0:00:37]} 29. exd4 {[%clk 0:00:25]}  e3 {[%clk 0:00:37]} 30. d5 {[%clk 0:00:20]}  exf2+ {[%clk 0:00:37]} 31. Kxf2 {[%clk 0:00:19]}  Re5 {[%clk 0:00:27]} 32. Qd3 {[%clk 0:00:18]}  Qe7 {[%clk 0:00:23]} 33. Re1 {[%clk 0:00:17]}  Qf6+ {[%clk 0:00:22]} 34. Kg2 {[%clk 0:00:18]}  Rf5 {[%clk 0:00:22]} 35. Rf1 {[%clk 0:00:18]}  Qe5 {[%clk 0:00:16]} 36. Rxf5 {[%clk 0:00:18]}  gxf5 {[%clk 0:00:17]} 37. Rf1 {[%clk 0:00:18]}  Qb2+ {[%clk 0:00:10]} 38. Rf2 {[%clk 0:00:18]}  Qxb4 {[%clk 0:00:10]} 39. d6 {[%clk 0:00:18]}  Qxc5 {[%clk 0:00:07]} 40. d7 {[%clk 0:00:19]}  Qc7 {[%clk 0:00:05]} 41. d8=Q+ {[%clk 0:00:18]} 1-0


[Site "https://www.chess.com"]